[Event "Titled Tuesday Blitz July 25 Early 2023"]
[White "Buscar, Michael"]
[Black "Kirillov, Dmitry"]
[WhiteFideId "2603616"]
[BlackFideId "34180572"]
[WhiteElo "2345"]
[BlackElo "2481"]
[Result "1-0"]
[Round "8"]
[TimeControl "180+2"]
[Date "2023.07.25"]
[WhiteClock "0:01:27"]
[BlackClock "0:01:32"]
[Board "133"]

1. d4 {[%clk 0:02:56]}  Nf6 {[%clk 0:02:59]} 2. c4 {[%clk 0:02:56]}  e6 {[%clk 0:02:59]} 3. Nc3 {[%clk 0:02:57]}  Bb4 {[%clk 0:02:59]} 4. Nf3 {[%clk 0:02:53]}  b6 {[%clk 0:02:59]} 5. g3 {[%clk 0:02:52]}  Bb7 {[%clk 0:02:59]} 6. Bg2 {[%clk 0:02:51]}  Ne4 {[%clk 0:02:59]} 7. Qc2 {[%clk 0:02:51]}  O-O {[%clk 0:02:59]} 8. O-O {[%clk 0:02:50]}  Bxc3 {[%clk 0:02:58]} 9. bxc3 {[%clk 0:02:50]}  f5 {[%clk 0:02:58]} 10. Nd2 {[%clk 0:02:48]}  d5 {[%clk 0:02:58]} 11. f3 {[%clk 0:02:47]}  Nxd2 {[%clk 0:02:57]} 12. Bxd2 {[%clk 0:02:47]}  dxc4 {[%clk 0:02:58]} 13. e4 {[%clk 0:02:47]}  Nc6 {[%clk 0:02:54]} 14. Rae1 {[%clk 0:02:47]}  Qd7 {[%clk 0:02:43]} 15. Re2 {[%clk 0:02:37]}  fxe4 {[%clk 0:02:43]} 16. fxe4 {[%clk 0:02:34]}  Rxf1+ {[%clk 0:02:42]} 17. Bxf1 {[%clk 0:02:35]}  Rf8 {[%clk 0:02:42]} 18. Bh3 {[%clk 0:02:34]}  Qf7 {[%clk 0:02:36]} 19. Qa4 {[%clk 0:02:17]}  Kh8 {[%clk 0:02:23]} 20. Qxc4 {[%clk 0:02:16]}  Qh5 {[%clk 0:02:14]} 21. Bg2 {[%clk 0:02:06]}  Na5 {[%clk 0:02:00]} 22. Qd3 {[%clk 0:02:04]}  Bc6 {[%clk 0:01:59]} 23. Re1 {[%clk 0:01:58]}  Bb5 {[%clk 0:01:57]} 24. Qb1 {[%clk 0:01:55]}  Bc4 {[%clk 0:01:56]} 25. Bf4 {[%clk 0:01:50]}  c5 {[%clk 0:01:48]} 26. Qd1 {[%clk 0:01:32]}  cxd4 {[%clk 0:01:46]} 27. Qxh5 {[%clk 0:01:32]}  dxc3 {[%clk 0:01:32]} 28. Rc1 {[%clk 0:01:27]} 1-0


[Site "https://www.chess.com"]

[Event "Titled Tuesday Blitz July 25 Early 2023"]
[White "Nayak Rajesh"]
[Black "Rodriguez Fontecha, Marcos"]
[WhiteFideId "35017152"]
[BlackFideId "2256576"]
[WhiteElo "2342"]
[BlackElo "2481"]
[Result "1-0"]
[Round "8"]
[TimeControl "180+2"]
[Date "2023.07.25"]
[WhiteClock "0:00:06"]
[BlackClock "0:00:00"]
[Board "134"]

1. e4 {[%clk 0:02:58]}  e6 {[%clk 0:02:59]} 2. d4 {[%clk 0:02:58]}  d5 {[%clk 0:02:58]} 3. Nd2 {[%clk 0:02:59]}  Nf6 {[%clk 0:02:57]} 4. e5 {[%clk 0:02:15]}  Nfd7 {[%clk 0:02:56]} 5. Bd3 {[%clk 0:02:16]}  c5 {[%clk 0:02:57]} 6. c3 {[%clk 0:02:16]}  Nc6 {[%clk 0:02:57]} 7. Ne2 {[%clk 0:02:17]}  cxd4 {[%clk 0:02:57]} 8. cxd4 {[%clk 0:02:17]}  f6 {[%clk 0:02:57]} 9. exf6 {[%clk 0:02:17]}  Nxf6 {[%clk 0:02:58]} 10. Nf3 {[%clk 0:02:17]}  Bd6 {[%clk 0:02:59]} 11. O-O {[%clk 0:02:17]}  O-O {[%clk 0:02:59]} 12. Bg5 {[%clk 0:02:16]}  Bd7 {[%clk 0:02:54]} 13. Rc1 {[%clk 0:02:14]}  a6 {[%clk 0:02:51]} 14. Bb1 {[%clk 0:02:13]}  Be8 {[%clk 0:02:45]} 15. Nf4 {[%clk 0:02:10]}  Bxf4 {[%clk 0:02:29]} 16. Bxf4 {[%clk 0:02:09]}  Ne4 {[%clk 0:02:29]} 17. Bxe4 {[%clk 0:01:16]}  dxe4 {[%clk 0:01:59]} 18. Bg5 {[%clk 0:01:14]}  Qd6 {[%clk 0:01:39]} 19. Nd2 {[%clk 0:01:04]}  Qxd4 {[%clk 0:01:09]} 20. Be3 {[%clk 0:00:51]}  Qd5 {[%clk 0:00:47]} 21. Rc5 {[%clk 0:00:48]}  Qd3 {[%clk 0:00:43]} 22. Qa4 {[%clk 0:00:45]}  Bg6 {[%clk 0:00:21]} 23. Rfc1 {[%clk 0:00:42]}  Rad8 {[%clk 0:00:20]} 24. h4 {[%clk 0:00:36]}  Qe2 {[%clk 0:00:20]} 25. Nxe4 {[%clk 0:00:33]}  Bxe4 {[%clk 0:00:09]} 26. Qxe4 {[%clk 0:00:32]}  Rd1+ {[%clk 0:00:10]} 27. Rxd1 {[%clk 0:00:31]}  Qxd1+ {[%clk 0:00:10]} 28. Kh2 {[%clk 0:00:29]}  Qd6+ {[%clk 0:00:10]} 29. g3 {[%clk 0:00:28]}  e5 {[%clk 0:00:11]} 30. Rc1 {[%clk 0:00:25]}  Nd4 {[%clk 0:00:11]} 31. Bxd4 {[%clk 0:00:22]}  exd4 {[%clk 0:00:11]} 32. Kg2 {[%clk 0:00:20]}  b5 {[%clk 0:00:10]} 33. Rd1 {[%clk 0:00:19]}  Rd8 {[%clk 0:00:11]} 34. Rd3 {[%clk 0:00:19]}  g6 {[%clk 0:00:09]} 35. h5 {[%clk 0:00:17]}  Kg7 {[%clk 0:00:09]} 36. hxg6 {[%clk 0:00:16]}  hxg6 {[%clk 0:00:10]} 37. Qb7+ {[%clk 0:00:12]}  Rd7 {[%clk 0:00:10]} 38. Qe4 {[%clk 0:00:12]}  a5 {[%clk 0:00:09]} 39. Rb3 {[%clk 0:00:11]}  b4 {[%clk 0:00:09]} 40. Rd3 {[%clk 0:00:10]}  a4 {[%clk 0:00:09]} 41. Qe1 {[%clk 0:00:10]}  Qd5+ {[%clk 0:00:08]} 42. Kg1 {[%clk 0:00:09]}  Qd6 {[%clk 0:00:04]} 43. Qe4 {[%clk 0:00:08]}  b3 {[%clk 0:00:02]} 44. axb3 {[%clk 0:00:07]}  axb3 {[%clk 0:00:00]} 45. f4 {[%clk 0:00:06]} 1-0


[Site "https://www.chess.com"]

[Event "Titled Tuesday Blitz July 25 Early 2023"]
[White "Romero Arzuaga, Yudel"]
[Black "Pasti, Aron"]
[WhiteFideId "3521010"]
[BlackFideId "785857"]
[WhiteElo "2303"]
[BlackElo "2458"]
[Result "1-0"]
[Round "8"]
[TimeControl "180+2"]
[Date "2023.07.25"]
[WhiteClock "0:00:35"]
[BlackClock "0:00:25"]
[Board "140"]

1. d4 {[%clk 0:03:00]}  d5 {[%clk 0:02:58]} 2. Nf3 {[%clk 0:03:01]}  Nf6 {[%clk 0:02:57]} 3. Bf4 {[%clk 0:03:02]}  c5 {[%clk 0:02:57]} 4. e3 {[%clk 0:03:02]}  Nc6 {[%clk 0:02:57]} 5. Be2 {[%clk 0:03:01]}  Qb6 {[%clk 0:02:52]} 6. O-O {[%clk 0:03:01]}  Qxb2 {[%clk 0:02:49]} 7. Nbd2 {[%clk 0:03:01]}  cxd4 {[%clk 0:02:48]} 8. Rb1 {[%clk 0:02:59]}  Qxa2 {[%clk 0:02:45]} 9. exd4 {[%clk 0:02:58]}  e6 {[%clk 0:02:43]} 10. c4 {[%clk 0:02:58]}  Be7 {[%clk 0:02:40]} 11. Ne5 {[%clk 0:02:53]}  Nxd4 {[%clk 0:02:28]} 12. cxd5 {[%clk 0:02:49]}  Nxd5 {[%clk 0:02:24]} 13. Bc4 {[%clk 0:02:44]}  Qc2 {[%clk 0:02:09]} 14. Bb5+ {[%clk 0:02:39]}  Kf8 {[%clk 0:01:58]} 15. Qh5 {[%clk 0:02:25]}  Qf5 {[%clk 0:01:47]} 16. Qxf5 {[%clk 0:02:16]}  Nxf5 {[%clk 0:01:48]} 17. Bg3 {[%clk 0:02:09]}  Nxg3 {[%clk 0:01:45]} 18. hxg3 {[%clk 0:02:00]}  Nc3 {[%clk 0:01:44]} 19. Rb3 {[%clk 0:01:57]}  Nxb5 {[%clk 0:01:44]} 20. Rxb5 {[%clk 0:01:57]}  a6 {[%clk 0:01:40]} 21. Ra1 {[%clk 0:01:54]}  Bf6 {[%clk 0:01:35]} 22. f4 {[%clk 0:01:54]}  Bd7 {[%clk 0:01:32]} 23. Rxb7 {[%clk 0:01:51]}  Bxe5 {[%clk 0:01:24]} 24. fxe5 {[%clk 0:01:50]}  Bc6 {[%clk 0:01:23]} 25. Rb6 {[%clk 0:01:47]}  Bd5 {[%clk 0:01:21]} 26. Rbxa6 {[%clk 0:01:44]}  Rxa6 {[%clk 0:01:20]} 27. Rxa6 {[%clk 0:01:45]}  g6 {[%clk 0:01:21]} 28. Nf3 {[%clk 0:01:42]}  Kg7 {[%clk 0:01:21]} 29. Ra7 {[%clk 0:01:42]}  Rc8 {[%clk 0:01:19]} 30. Ng5 {[%clk 0:01:42]}  Rf8 {[%clk 0:01:14]} 31. Nf3 {[%clk 0:01:40]}  h6 {[%clk 0:01:13]} 32. Nd4 {[%clk 0:01:38]}  Rc8 {[%clk 0:01:12]} 33. Nb5 {[%clk 0:01:38]}  Rc1+ {[%clk 0:01:06]} 34. Kf2 {[%clk 0:01:19]}  Bc4 {[%clk 0:01:02]} 35. Nd6 {[%clk 0:01:15]}  Rf1+ {[%clk 0:01:01]} 36. Ke3 {[%clk 0:01:15]}  Bd5 {[%clk 0:01:01]} 37. Ke2 {[%clk 0:01:12]}  Bxg2 {[%clk 0:01:00]} 38. Ne8+ {[%clk 0:01:09]}  Kf8 {[%clk 0:00:58]} 39. Nf6 {[%clk 0:01:07]}  Rf5 {[%clk 0:00:50]} 40. Kd2 {[%clk 0:01:03]}  Rxe5 {[%clk 0:00:48]} 41. Nd7+ {[%clk 0:01:03]}  Ke7 {[%clk 0:00:47]} 42. Nxe5+ {[%clk 0:01:04]}  Kf6 {[%clk 0:00:48]} 43. Nd3 {[%clk 0:01:02]}  Bd5 {[%clk 0:00:47]} 44. Ke3 {[%clk 0:01:01]}  g5 {[%clk 0:00:46]} 45. Nc5 {[%clk 0:00:59]}  h5 {[%clk 0:00:45]} 46. Nd7+ {[%clk 0:00:59]}  Kf5 {[%clk 0:00:45]} 47. Nb6 {[%clk 0:00:57]}  f6 {[%clk 0:00:45]} 48. Nxd5 {[%clk 0:00:56]}  exd5 {[%clk 0:00:46]} 49. Rd7 {[%clk 0:00:55]}  Kg4 {[%clk 0:00:46]} 50. Kf2 {[%clk 0:00:54]}  f5 {[%clk 0:00:44]} 51. Rxd5 {[%clk 0:00:53]}  f4 {[%clk 0:00:41]} 52. gxf4 {[%clk 0:00:47]}  gxf4 {[%clk 0:00:42]} 53. Rd8 {[%clk 0:00:45]}  h4 {[%clk 0:00:41]} 54. Rg8+ {[%clk 0:00:44]}  Kh3 {[%clk 0:00:41]} 55. Rh8 {[%clk 0:00:36]}  Kg4 {[%clk 0:00:40]} 56. Kg2 {[%clk 0:00:37]}  f3+ {[%clk 0:00:39]} 57. Kf2 {[%clk 0:00:37]}  h3 {[%clk 0:00:28]} 58. Rg8+ {[%clk 0:00:35]}  Kh4 {[%clk 0:00:27]} 59. Kxf3 {[%clk 0:00:35]}  h2 {[%clk 0:00:25]} 60. Rh8+ {[%clk 0:00:34]}  Kg5 {[%clk 0:00:25]} 61. Rxh2 {[%clk 0:00:35]} 1-0


[Site "https://www.chess.com"]

[Event "Titled Tuesday Blitz July 25 Early 2023"]
[White "ExchangeAB"]
[Black "Senft, Sean"]
[BlackFideId "2044960"]
[WhiteElo "2456"]
[BlackElo "2302"]
[Result "1-0"]
[Round "8"]
[TimeControl "180+2"]
[Date "2023.07.25"]
[WhiteClock "0:01:42"]
[BlackClock "0:02:08"]
[Board "141"]

1. d4 {[%clk 0:03:00]}  d5 {[%clk 0:03:00]} 2. Nc3 {[%clk 0:03:00]}  c6 {[%clk 0:03:00]} 3. e4 {[%clk 0:03:00]}  dxe4 {[%clk 0:03:01]} 4. Nxe4 {[%clk 0:03:00]}  Nf6 {[%clk 0:03:01]} 5. Nxf6+ {[%clk 0:02:59]}  exf6 {[%clk 0:03:02]} 6. Bc4 {[%clk 0:03:00]}  g6 {[%clk 0:03:02]} 7. Nf3 {[%clk 0:02:58]}  Bg7 {[%clk 0:03:02]} 8. Qe2+ {[%clk 0:02:58]}  Qe7 {[%clk 0:03:02]} 9. Qxe7+ {[%clk 0:02:58]}  Kxe7 {[%clk 0:03:03]} 10. c3 {[%clk 0:02:57]}  Be6 {[%clk 0:03:03]} 11. Bb3 {[%clk 0:02:54]}  Nd7 {[%clk 0:03:02]} 12. Bf4 {[%clk 0:02:53]}  Rhe8 {[%clk 0:03:01]} 13. Kd2 {[%clk 0:02:53]}  Kf8 {[%clk 0:03:01]} 14. Bd6+ {[%clk 0:02:53]}  Kg8 {[%clk 0:03:01]} 15. Bf4 {[%clk 0:02:38]}  Nb6 {[%clk 0:02:57]} 16. Rhe1 {[%clk 0:02:34]}  a6 {[%clk 0:02:55]} 17. Kc2 {[%clk 0:02:30]}  Bxb3+ {[%clk 0:02:51]} 18. axb3 {[%clk 0:02:30]}  Nd5 {[%clk 0:02:51]} 19. Bd2 {[%clk 0:02:29]}  Bf8 {[%clk 0:02:50]} 20. Rxe8 {[%clk 0:02:27]}  Rxe8 {[%clk 0:02:51]} 21. Re1 {[%clk 0:02:25]}  Rxe1 {[%clk 0:02:51]} 22. Nxe1 {[%clk 0:02:26]}  Bd6 {[%clk 0:02:51]} 23. g3 {[%clk 0:02:22]}  h5 {[%clk 0:02:47]} 24. Nd3 {[%clk 0:02:20]}  h4 {[%clk 0:02:43]} 25. c4 {[%clk 0:02:16]}  Ne7 {[%clk 0:02:40]} 26. Bb4 {[%clk 0:02:02]}  Bxb4 {[%clk 0:02:37]} 27. Nxb4 {[%clk 0:02:03]}  h3 {[%clk 0:02:31]} 28. Nd3 {[%clk 0:01:53]}  Nf5 {[%clk 0:02:31]} 29. Kc3 {[%clk 0:01:49]}  Nh6 {[%clk 0:02:18]} 30. Nf4 {[%clk 0:01:43]}  Ng4 {[%clk 0:02:16]} 31. Nxh3 {[%clk 0:01:43]}  Nxf2 {[%clk 0:02:08]} 32. Nxf2 {[%clk 0:01:42]} 1-0


[Site "https://www.chess.com"]

[Event "Titled Tuesday Blitz July 25 Early 2023"]
[White "Ljukin, Sergei"]
[Black "Araujo Filho, Luiz Antonio Coel"]
[WhiteFideId "14102200"]
[BlackFideId "2130661"]
[WhiteElo "2452"]
[BlackElo "2289"]
[Result "1-0"]
[Round "8"]
[TimeControl "180+2"]
[Date "2023.07.25"]
[WhiteClock "0:00:03"]
[BlackClock "0:00:02"]
[Board "142"]

1. e4 {[%clk 0:02:43]}  c6 {[%clk 0:02:58]} 2. d4 {[%clk 0:02:42]}  d5 {[%clk 0:02:57]} 3. e5 {[%clk 0:02:42]}  Bf5 {[%clk 0:02:57]} 4. Nd2 {[%clk 0:02:42]}  h5 {[%clk 0:02:49]} 5. Nb3 {[%clk 0:02:41]}  e6 {[%clk 0:02:49]} 6. Nf3 {[%clk 0:02:41]}  Nd7 {[%clk 0:02:48]} 7. Be2 {[%clk 0:02:41]}  Ne7 {[%clk 0:02:48]} 8. O-O {[%clk 0:02:37]}  Qc7 {[%clk 0:02:38]} 9. Be3 {[%clk 0:02:29]}  Ng6 {[%clk 0:02:15]} 10. Rc1 {[%clk 0:02:19]}  Be7 {[%clk 0:02:10]} 11. a4 {[%clk 0:02:16]}  h4 {[%clk 0:02:10]} 12. h3 {[%clk 0:02:14]}  O-O {[%clk 0:02:02]} 13. a5 {[%clk 0:02:13]}  f6 {[%clk 0:01:42]} 14. exf6 {[%clk 0:02:12]}  Bxf6 {[%clk 0:01:40]} 15. c4 {[%clk 0:02:11]}  Nf4 {[%clk 0:01:32]} 16. Bxf4 {[%clk 0:01:46]}  Qxf4 {[%clk 0:01:31]} 17. Bd3 {[%clk 0:01:46]}  g5 {[%clk 0:00:47]} 18. Bxf5 {[%clk 0:01:38]}  Qxf5 {[%clk 0:00:46]} 19. cxd5 {[%clk 0:01:10]}  exd5 {[%clk 0:00:44]} 20. a6 {[%clk 0:01:08]}  bxa6 {[%clk 0:00:31]} 21. Rxc6 {[%clk 0:01:05]}  g4 {[%clk 0:00:29]} 22. hxg4 {[%clk 0:00:47]}  Qxg4 {[%clk 0:00:30]} 23. Nfd2 {[%clk 0:00:41]}  Qg5 {[%clk 0:00:24]} 24. Qf3 {[%clk 0:00:22]}  Bxd4 {[%clk 0:00:16]} 25. Qh3 {[%clk 0:00:16]}  Bxf2+ {[%clk 0:00:09]} 26. Rxf2 {[%clk 0:00:15]}  Rxf2 {[%clk 0:00:09]} 27. Kxf2 {[%clk 0:00:11]}  Rf8+ {[%clk 0:00:09]} 28. Nf3 {[%clk 0:00:10]}  Ne5 {[%clk 0:00:03]} 29. Qe6+ {[%clk 0:00:09]}  Kh8 {[%clk 0:00:03]} 30. Nd2 {[%clk 0:00:09]}  Ng4+ {[%clk 0:00:03]} 31. Kg1 {[%clk 0:00:08]}  Qe3+ {[%clk 0:00:03]} 32. Qxe3 {[%clk 0:00:07]}  Nxe3 {[%clk 0:00:04]} 33. Kf2 {[%clk 0:00:08]}  Nd1+ {[%clk 0:00:04]} 34. Ke1 {[%clk 0:00:07]}  Nxb2 {[%clk 0:00:05]} 35. Rxa6 {[%clk 0:00:07]}  Nd3+ {[%clk 0:00:05]} 36. Ke2 {[%clk 0:00:07]}  Nf4+ {[%clk 0:00:05]} 37. Kf2 {[%clk 0:00:08]}  Re8 {[%clk 0:00:05]} 38. Rf6 {[%clk 0:00:06]}  Re2+ {[%clk 0:00:05]} 39. Kf1 {[%clk 0:00:06]}  Rxg2 {[%clk 0:00:04]} 40. Rxf4 {[%clk 0:00:05]}  Rg3 {[%clk 0:00:03]} 41. Rxh4+ {[%clk 0:00:05]}  Kg7 {[%clk 0:00:04]} 42. Rd4 {[%clk 0:00:05]}  Kf6 {[%clk 0:00:04]} 43. Rxd5 {[%clk 0:00:05]}  Rg7 {[%clk 0:00:04]} 44. Ra5 {[%clk 0:00:05]}  Ke6 {[%clk 0:00:04]} 45. Kf2 {[%clk 0:00:06]}  Kd6 {[%clk 0:00:03]} 46. Ke3 {[%clk 0:00:06]}  Kc6 {[%clk 0:00:04]} 47. Kd4 {[%clk 0:00:06]}  Kb6 {[%clk 0:00:04]} 48. Ra1 {[%clk 0:00:05]}  a6 {[%clk 0:00:04]} 49. Nc4+ {[%clk 0:00:05]}  Kb5 {[%clk 0:00:04]} 50. Rb1+ {[%clk 0:00:05]}  Kc6 {[%clk 0:00:04]} 51. Nfe5+ {[%clk 0:00:05]}  Kc7 {[%clk 0:00:02]} 52. Ra1 {[%clk 0:00:04]}  Rh7 {[%clk 0:00:02]} 53. Rxa6 {[%clk 0:00:04]}  Rh4+ {[%clk 0:00:03]} 54. Kc5 {[%clk 0:00:04]}  Rh5 {[%clk 0:00:03]} 55. Ra7+ {[%clk 0:00:04]}  Kd8 {[%clk 0:00:03]} 56. Kd5 {[%clk 0:00:03]}  Kc8 {[%clk 0:00:02]} 57. Nd6+ {[%clk 0:00:03]}  Kd8 {[%clk 0:00:02]} 58. Ra6 {[%clk 0:00:02]}  Kc7 {[%clk 0:00:02]} 59. Rc6+ {[%clk 0:00:01]}  Kd8 {[%clk 0:00:01]} 60. Rc4 {[%clk 0:00:02]}  Ke7 {[%clk 0:00:02]} 61. Rc7+ {[%clk 0:00:02]}  Kd8 {[%clk 0:00:02]} 62. Rd7# {[%clk 0:00:03]} 1-0


[Site "https://www.chess.com"]

[Event "Titled Tuesday Blitz July 25 Early 2023"]
[White "laimis61"]
[Black "Padmini, Rout"]
[BlackFideId "5029295"]
[WhiteElo "2296"]
[BlackElo "2451"]
[Result "0-1"]
[Round "8"]
[TimeControl "180+2"]
[Date "2023.07.25"]
[WhiteClock "0:00:00"]
[BlackClock "0:00:05"]
[Board "143"]

1. e4 {[%clk 0:01:57]}  c5 {[%clk 0:02:17]} 2. Nf3 {[%clk 0:01:56]}  d6 {[%clk 0:02:17]} 3. d4 {[%clk 0:01:55]}  cxd4 {[%clk 0:02:18]} 4. Nxd4 {[%clk 0:01:55]}  Nf6 {[%clk 0:02:19]} 5. Nc3 {[%clk 0:01:55]}  Nc6 {[%clk 0:02:19]} 6. Bg5 {[%clk 0:01:53]}  e6 {[%clk 0:02:20]} 7. Qd2 {[%clk 0:01:52]}  Be7 {[%clk 0:02:20]} 8. O-O-O {[%clk 0:01:51]}  a6 {[%clk 0:02:20]} 9. f3 {[%clk 0:01:46]}  Bd7 {[%clk 0:02:18]} 10. Kb1 {[%clk 0:01:44]}  b5 {[%clk 0:02:11]} 11. Nxc6 {[%clk 0:01:39]}  Bxc6 {[%clk 0:02:12]} 12. h4 {[%clk 0:01:39]}  Rc8 {[%clk 0:02:03]} 13. g4 {[%clk 0:01:38]}  h6 {[%clk 0:01:38]} 14. Be3 {[%clk 0:01:36]}  Qa5 {[%clk 0:01:24]} 15. Bd3 {[%clk 0:01:28]}  b4 {[%clk 0:01:23]} 16. Ne2 {[%clk 0:01:27]}  d5 {[%clk 0:01:22]} 17. e5 {[%clk 0:01:25]}  Nd7 {[%clk 0:01:21]} 18. Bd4 {[%clk 0:01:17]}  Nc5 {[%clk 0:01:13]} 19. f4 {[%clk 0:01:14]}  Nxd3 {[%clk 0:01:06]} 20. cxd3 {[%clk 0:01:13]}  Qb5 {[%clk 0:01:05]} 21. h5 {[%clk 0:01:06]}  a5 {[%clk 0:01:05]} 22. g5 {[%clk 0:01:01]}  a4 {[%clk 0:01:05]} 23. g6 {[%clk 0:00:56]}  fxg6 {[%clk 0:01:04]} 24. Rhg1 {[%clk 0:00:54]}  g5 {[%clk 0:01:03]} 25. fxg5 {[%clk 0:00:51]}  hxg5 {[%clk 0:01:03]} 26. Rxg5 {[%clk 0:00:50]}  Bxg5 {[%clk 0:00:56]} 27. Qxg5 {[%clk 0:00:49]}  Rc7 {[%clk 0:00:57]} 28. Qg6+ {[%clk 0:00:47]}  Kd8 {[%clk 0:00:54]} 29. Qxe6 {[%clk 0:00:44]}  Bd7 {[%clk 0:00:31]} 30. Qg6 {[%clk 0:00:39]}  Kc8 {[%clk 0:00:29]} 31. e6 {[%clk 0:00:38]}  Be8 {[%clk 0:00:28]} 32. Qg5 {[%clk 0:00:32]}  Rxh5 {[%clk 0:00:27]} 33. Qg3 {[%clk 0:00:30]}  Rh6 {[%clk 0:00:23]} 34. Be5 {[%clk 0:00:26]}  Re7 {[%clk 0:00:20]} 35. Rc1+ {[%clk 0:00:25]}  Kb7 {[%clk 0:00:18]} 36. Nd4 {[%clk 0:00:20]}  Qb6 {[%clk 0:00:18]} 37. Qf4 {[%clk 0:00:17]}  Rhxe6 {[%clk 0:00:17]} 38. Nxe6 {[%clk 0:00:16]}  Qxe6 {[%clk 0:00:18]} 39. d4 {[%clk 0:00:16]}  Bg6+ {[%clk 0:00:17]} 40. Ka1 {[%clk 0:00:13]}  b3 {[%clk 0:00:17]} 41. Qd2 {[%clk 0:00:12]}  Qb6 {[%clk 0:00:14]} 42. Qg5 {[%clk 0:00:12]}  Rf7 {[%clk 0:00:13]} 43. Qg4 {[%clk 0:00:11]}  Bc2 {[%clk 0:00:12]} 44. Qh5 {[%clk 0:00:10]}  Rd7 {[%clk 0:00:11]} 45. Qh8 {[%clk 0:00:09]}  Qa7 {[%clk 0:00:10]} 46. Qe8 {[%clk 0:00:09]}  Ka6 {[%clk 0:00:10]} 47. Qe6+ {[%clk 0:00:08]}  Kb5 {[%clk 0:00:09]} 48. Qg4 {[%clk 0:00:07]}  Qb7 {[%clk 0:00:08]} 49. Qe2+ {[%clk 0:00:07]}  Kb6 {[%clk 0:00:08]} 50. Qd2 {[%clk 0:00:07]}  Qc6 {[%clk 0:00:07]} 51. Qb4+ {[%clk 0:00:07]}  Qb5 {[%clk 0:00:08]} 52. Qf8 {[%clk 0:00:06]}  Kb7 {[%clk 0:00:06]} 53. Qb8+ {[%clk 0:00:06]}  Ka6 {[%clk 0:00:06]} 54. Qa8+ {[%clk 0:00:06]}  Ra7 {[%clk 0:00:06]} 55. Qc8+ {[%clk 0:00:06]}  Qb7 {[%clk 0:00:06]} 56. Qe6+ {[%clk 0:00:06]}  Qb6 {[%clk 0:00:06]} 57. Qxd5 {[%clk 0:00:06]}  Rb7 {[%clk 0:00:06]} 58. Qc4+ {[%clk 0:00:06]}  Qb5 {[%clk 0:00:06]} 59. Qe6+ {[%clk 0:00:05]}  Ka7 {[%clk 0:00:06]} 60. Qc8 {[%clk 0:00:05]}  a3 {[%clk 0:00:06]} 61. d5 {[%clk 0:00:04]}  axb2+ {[%clk 0:00:06]} 62. Bxb2 {[%clk 0:00:00]}  Qb6 {[%clk 0:00:05]} 0-1


[Site "https://www.chess.com"]

[Event "Titled Tuesday Blitz July 25 Early 2023"]
[White "Herzog2012"]
[Black "Fernandez Bustamante, Leancy B."]
[BlackFideId "3523870"]
[WhiteElo "2445"]
[BlackElo "2287"]
[Result "1-0"]
[Round "8"]
[TimeControl "180+2"]
[Date "2023.07.25"]
[WhiteClock "0:00:22"]
[BlackClock "0:00:00"]
[Board "144"]

1. e4 {[%clk 0:03:00]}  c5 {[%clk 0:03:00]} 2. Nf3 {[%clk 0:02:59]}  a6 {[%clk 0:03:01]} 3. Nc3 {[%clk 0:02:56]}  b5 {[%clk 0:03:00]} 4. d4 {[%clk 0:02:55]}  cxd4 {[%clk 0:03:01]} 5. Nxd4 {[%clk 0:02:55]}  Bb7 {[%clk 0:03:01]} 6. Bd3 {[%clk 0:02:55]}  Nc6 {[%clk 0:03:00]} 7. Nxc6 {[%clk 0:02:52]}  Bxc6 {[%clk 0:03:01]} 8. O-O {[%clk 0:02:51]}  d6 {[%clk 0:02:59]} 9. a4 {[%clk 0:02:48]}  b4 {[%clk 0:02:58]} 10. Nd5 {[%clk 0:02:48]}  a5 {[%clk 0:02:51]} 11. Bg5 {[%clk 0:02:10]}  h6 {[%clk 0:02:46]} 12. Bh4 {[%clk 0:02:08]}  g5 {[%clk 0:02:42]} 13. Bg3 {[%clk 0:02:05]}  Bg7 {[%clk 0:02:41]} 14. Bb5 {[%clk 0:01:53]}  Bxb5 {[%clk 0:02:32]} 15. axb5 {[%clk 0:01:54]}  Bxb2 {[%clk 0:02:22]} 16. b6 {[%clk 0:01:49]}  Kf8 {[%clk 0:02:07]} 17. Ra2 {[%clk 0:01:42]}  Bg7 {[%clk 0:01:45]} 18. Qd3 {[%clk 0:01:13]}  Nf6 {[%clk 0:01:31]} 19. Qb5 {[%clk 0:00:52]}  Nxe4 {[%clk 0:01:09]} 20. Rxa5 {[%clk 0:00:41]}  Rxa5 {[%clk 0:00:53]} 21. Qxa5 {[%clk 0:00:42]}  e6 {[%clk 0:00:38]} 22. b7 {[%clk 0:00:36]}  Qe8 {[%clk 0:00:15]} 23. Qa8 {[%clk 0:00:30]}  exd5 {[%clk 0:00:13]} 24. Qxe8+ {[%clk 0:00:28]}  Kxe8 {[%clk 0:00:13]} 25. b8=Q+ {[%clk 0:00:28]}  Ke7 {[%clk 0:00:13]} 26. Qxb4 {[%clk 0:00:26]}  Rd8 {[%clk 0:00:10]} 27. f3 {[%clk 0:00:24]}  Nc5 {[%clk 0:00:08]} 28. Re1+ {[%clk 0:00:22]}  Kd7 {[%clk 0:00:07]} 29. Qb5+ {[%clk 0:00:21]}  Kc8 {[%clk 0:00:06]} 30. Qc6+ {[%clk 0:00:21]}  Kb8 {[%clk 0:00:00]} 31. Rb1+ {[%clk 0:00:22]} 1-0


[Site "https://www.chess.com"]

[Event "Titled Tuesday Blitz July 25 Early 2023"]
[White "Rakitic2010"]
[Black "Xavier_mompel"]
[WhiteElo "2442"]
[BlackElo "2275"]
[Result "0-1"]
[Round "8"]
[TimeControl "180+2"]
[Date "2023.07.25"]
[WhiteClock "0:00:22"]
[BlackClock "0:00:22"]
[Board "145"]

1. e4 {[%clk 0:03:00]}  c5 {[%clk 0:02:58]} 2. Nf3 {[%clk 0:03:00]}  e6 {[%clk 0:02:58]} 3. c4 {[%clk 0:03:00]}  Nc6 {[%clk 0:02:58]} 4. d4 {[%clk 0:02:58]}  cxd4 {[%clk 0:02:58]} 5. Nxd4 {[%clk 0:02:59]}  Qb6 {[%clk 0:02:55]} 6. Nb5 {[%clk 0:02:55]}  Bc5 {[%clk 0:02:54]} 7. Nd6+ {[%clk 0:02:32]}  Ke7 {[%clk 0:02:52]} 8. Be3 {[%clk 0:02:05]}  Bxe3 {[%clk 0:02:34]} 9. fxe3 {[%clk 0:02:06]}  Qxb2 {[%clk 0:02:21]} 10. Nxc8+ {[%clk 0:01:49]}  Rxc8 {[%clk 0:02:22]} 11. Nd2 {[%clk 0:01:49]}  Nf6 {[%clk 0:02:10]} 12. Be2 {[%clk 0:01:49]}  Qc3 {[%clk 0:02:05]} 13. O-O {[%clk 0:01:48]}  Qxe3+ {[%clk 0:02:04]} 14. Kh1 {[%clk 0:01:47]}  Nd4 {[%clk 0:01:45]} 15. Bf3 {[%clk 0:01:37]}  Nxf3 {[%clk 0:01:43]} 16. Rxf3 {[%clk 0:01:31]}  Qd4 {[%clk 0:01:43]} 17. Rb1 {[%clk 0:01:24]}  Ng4 {[%clk 0:01:25]} 18. Qe2 {[%clk 0:01:08]}  Ne5 {[%clk 0:01:20]} 19. Rg3 {[%clk 0:01:03]}  g6 {[%clk 0:01:03]} 20. Rxb7 {[%clk 0:00:55]}  Rxc4 {[%clk 0:00:53]} 21. Rb1 {[%clk 0:00:33]}  Rc2 {[%clk 0:00:49]} 22. Rd1 {[%clk 0:00:30]}  Rhc8 {[%clk 0:00:34]} 23. Qe1 {[%clk 0:00:27]}  Nd3 {[%clk 0:00:25]} 24. Qe3 {[%clk 0:00:18]}  Qxe3 {[%clk 0:00:23]} 25. Rxe3 {[%clk 0:00:19]}  Nf2+ {[%clk 0:00:24]} 26. Kg1 {[%clk 0:00:18]}  Nxd1 {[%clk 0:00:24]} 27. h4 {[%clk 0:00:19]}  Nxe3 {[%clk 0:00:24]} 28. h5 {[%clk 0:00:20]}  Rxd2 {[%clk 0:00:24]} 29. Kh2 {[%clk 0:00:21]}  Rxg2+ {[%clk 0:00:23]} 30. Kh3 {[%clk 0:00:22]}  Rc1 {[%clk 0:00:22]} 31. Kh4 {[%clk 0:00:22]}  Rh1# {[%clk 0:00:22]} 0-1


[Site "https://www.chess.com"]